fUSD/lending_fUSD_20260307
["ID","MTS","AMOUNT","RATE_DAILY","PERIOD"]
[407871711,1772861440696,-694.0,0.00019767,2]
[407871712,1772861440705,-500.0,0.00019767,2]
[407871713,1772861440714,-1013.0,0.00019767,2]
[407871714,1772861440723,-500.0,0.00019767,2]
[407871715,1772861440732,-707.0,0.00019767,2]
[407871716,1772861440741,-500.0,0.00019767,2]
[407871717,1772861440750,-1000.0,0.00019787,2]
[407871718,1772861440759,-1003.00294821,0.00019789,2]
[407871719,1772861440768,-1000.0,0.00019798,2]
[407871720,1772861440777,-993.0,0.00019798,2]
[407871721,1772861440786,-5037.05624778,0.00019799,2]
[407871722,1772861440796,-1300.0,0.000198,7]
[407871723,1772861440805,-500.0,0.00019802,2]
[407871724,1772861440815,-500.0,0.00019802,2]
[407871725,1772861440824,-500.0,0.00019802,2]
[407871726,1772861440833,-500.0,0.00019802,2]
[407871727,1772861440842,-1183.0,0.0001981,7]
[407871728,1772861440851,-5037.05624771,0.0001981,2]
[407871729,1772861440861,-5037.05624771,0.00019821,2]
[407871730,1772861440872,-539.0,0.00019822,2]
[407871731,1772861440881,-590.0,0.00019822,2]
[407871732,1772861440891,-500.0,0.00019822,2]
[407871733,1772861440900,-1224.0,0.00019822,2]
[407871734,1772861440910,-694.0,0.00019822,2]
[407871735,1772861440920,-500.0,0.00019822,2]
[407871736,1772861440929,-1013.0,0.00019822,2]
[407871737,1772861440939,-500.0,0.00019822,2]
[407871738,1772861440948,-707.0,0.00019822,2]
[407871739,1772861440958,-500.0,0.00019822,2]
[407871740,1772861440967,-245.0,0.00019851,30]
[407871741,1772861440976,-993.0,0.00019853,2]
[407871742,1772861440987,-500.0,0.00019856,2]
[407871743,1772861440996,-500.0,0.00019856,2]
[407871744,1772861441006,-500.0,0.00019856,2]
[407871745,1772861441016,-500.0,0.00019856,2]
[407871746,1772861441026,-1183.0,0.00019864,7]
[407871747,1772861441038,-539.0,0.00019877,2]
[407871748,1772861441048,-590.0,0.00019877,2]
[407871749,1772861441058,-500.0,0.00019877,2]
[407871750,1772861441067,-1224.0,0.00019877,2]
[407871751,1772861441078,-694.0,0.00019877,2]
[407871752,1772861441087,-500.0,0.00019877,2]
[407871753,1772861441097,-1013.0,0.00019877,2]
[407871754,1772861441109,-500.0,0.00019877,2]
[407871755,1772861441118,-707.0,0.00019877,2]
[407871756,1772861441128,-500.0,0.00019877,2]
[407871757,1772861441138,-168.0,0.00019894,2]
[407871758,1772861441147,-500.0,0.00019899,2]
[407871759,1772861441157,-500.0,0.00019899,2]
[407871760,1772861441166,-500.0,0.00019899,2]
[407871761,1772861441175,-16228.5515,0.000199,2]
[407871762,1772861441184,-812.63962725,0.000199,2]
[407871763,1772861441193,-25000.0,0.000199,3]
[407871764,1772861441203,-1003.00294821,0.000199,2]
[407871765,1772861441212,-5000.0,0.000199,2]
[407871766,1772861441222,-1088.66773329,0.000199,2]
[407871767,1772861441231,-2163.6249,0.000199,2]
[407871768,1772861441240,-1300.0,0.000199,7]
[407871769,1772861441250,-554.47389353,0.000199,3]
[407871770,1772861441259,-1472.0,0.000199,2]
[407871771,1772861441268,-30984.27162414,0.000199,2]
[407871772,1772861441277,-513.0134,0.00019903,2]
[407871773,1772861441287,-993.0,0.00019908,2]
[407871774,1772861441296,-1000.0,0.00019911,2]
[407871775,1772861441305,-500.0,0.00019911,2]
[407871776,1772861441315,-500.0,0.00019911,2]
[407871777,1772861441324,-500.0,0.00019911,2]
[407871778,1772861441333,-500.0,0.00019911,2]
[407871779,1772861441342,-427.17,0.00019913,14]
[407871780,1772861441351,-256.3,0.00019913,14]
[407871781,1772861441361,-1183.0,0.00019919,7]
[407871782,1772861441370,-539.0,0.00019931,2]
[407871783,1772861441380,-590.0,0.00019931,2]
[407871784,1772861441389,-500.0,0.00019931,2]
[407871785,1772861441398,-1224.0,0.00019931,2]
[407871786,1772861441408,-694.0,0.00019931,2]
[407871787,1772861441417,-500.0,0.00019931,2]
[407871788,1772861441426,-1013.0,0.00019931,2]
[407871789,1772861441435,-493.0,0.00019931,2]
[407871790,1772861441444,-707.0,0.00019931,2]
[407871791,1772861441454,-500.0,0.00019931,2]
[407871792,1772861441464,-1000.0,0.00019934,2]
[407871793,1772861441473,-1000.0,0.00019938,2]
[407871794,1772861441483,-500.0,0.00019944,2]
[407871795,1772861441493,-265.14,0.00019947,2]
[407871796,1772861441503,-1000.0,0.00019948,2]
[407871797,1772861441512,-993.0,0.00019963,2]
[407871798,1772861441521,-500.0,0.00019966,2]
[407871799,1772861441531,-500.0,0.00019966,2]
[407871800,1772861441540,-491.19591819,0.00019966,2]
[407871801,1772861441549,-500.0,0.00019966,2]
[407871802,1772861441558,-18029.0,0.00019973,2]
[407871803,1772861441570,-500.0,0.00019973,2]
[407871804,1772861441580,-150.0,0.00019973,2]
[407871805,1772861441589,-1183.0,0.00019974,7]
[407871806,1772861441598,-1000.0,0.00019979,2]
[407871807,1772861441607,-1000.0,0.00019979,2]
[407871808,1772861441616,-539.0,0.00019986,2]
[407871809,1772861441625,-590.0,0.00019986,2]
[407871810,1772861441635,-500.0,0.00019986,2]
[407871811,1772861441644,-1224.0,0.00019986,2]
[407871812,1772861441654,-694.0,0.00019986,2]
[407871814,1772861441663,-500.0,0.00019986,2]
[407871816,1772861441672,-1013.0,0.00019986,2]
[407871818,1772861441681,-707.0,0.00019986,2]
[407871820,1772861441690,-341.08426516,0.00019986,2]
[407871821,1772861441699,-408.0,0.00019989,2]
[407871822,1772861441709,-220.36614209,0.0001999,2]
[407871823,1772861441718,-220.36614209,0.0001999,2]
[407871824,1772861441727,-220.36614209,0.0001999,2]
[407871825,1772861441736,-151.0,0.00019997,2]
[407871826,1772861441745,-155.661,0.00019999,2]
[407871827,1772861441755,-500.0,0.00019999,2]
[407871828,1772861441764,-500.0,0.00019999,2]
[407871829,1772861441773,-500.0,0.00019999,2]
[407871830,1772861441782,-500.0,0.00019999,2]
[407871831,1772861441792,-3000.0,0.00019999,2]
[407871832,1772861441802,-3000.0,0.00019999,7]
[407871833,1772861441814,-307.04969745,0.00019999,2]
[407871834,1772861441823,-256.75572098,0.00019999,2]
[407871835,1772861441832,-1847.0,0.0002,2]
[407871836,1772861441842,-1500.0,0.0002,7]
[407871837,1772861441854,-4062030.64066482,0.0002,2]
[407871838,1772861442015,-1341.0,0.00019634,2]
[407871839,1772861442024,-4425615.01297793,0.0002,2]
[407871846,1772861445976,-500.0,0.00019219,2]
[407871847,1772861445986,-500.0,0.00019219,2]
[407871848,1772861445995,-298.97054013,0.00019219,2]
[407871969,1772862136806,-504.0,0.00013333,2]
[407871970,1772862136832,-155.5,0.00014921,2]
[407871971,1772862136854,-2500.0,0.00016594,2]
[407871972,1772862136876,-2500.0,0.00016594,2]
[407871973,1772862136897,-324.86671828,0.00016594,2]
[407871974,1772862136919,-504.0,0.00016842,5]
[407871975,1772862136942,-200.0,0.00017094,2]
[407871976,1772862136963,-210.03,0.00017763,2]
[407871977,1772862136983,-200.0,0.00017763,2]
[407871978,1772862137003,-246.60328172,0.00017763,2]
[407871980,1772862392127,-174.92642197,0.00013333,2]
[407871981,1772862557087,-329.07357803,0.00013333,2]
[407871982,1772862594267,173.2956473,0.00013333,2]
[407871986,1772862631888,-330.7043527,0.00013333,2]
[407871987,1772862631901,-200.0,0.00016808,2]
[407871988,1772862631912,-1802.61664156,0.00016808,2]
[407871989,1772862631998,-697.38335844,0.00016808,2]
[407871990,1772862632012,-2500.0,0.00016808,2]
[407871991,1772862632026,-2500.0,0.00016808,2]
[407871992,1772862632040,-2500.0,0.00016808,2]
[407871993,1772862632054,-2500.0,0.00016808,2]
[407871994,1772862632067,-200.0,0.00016999,2]
[407871995,1772862632081,-504.0,0.000175,5]
[407871996,1772862632095,-1253.39671828,0.00017763,2]
[407871997,1772862632109,-3000.0,0.00017808,7]
[407871999,1772862632123,-371.41690258,0.000179,2]
[407872000,1772862632136,-371.41690255,0.00018043,2]
[407872001,1772862632151,-166.66,0.00018296,2]
[407872002,1772862632165,-371.41690255,0.00018424,2]
[407872003,1772862632180,-500.0,0.00018513,2]
[407872004,1772862632194,-812.91,0.00018565,2]
[407872005,1772862632208,-221.23,0.00018622,3]
[407872007,1772862632222,-1600.0,0.00018796,2]
[407872008,1772862632235,-371.41690255,0.00018804,2]
[407872009,1772862632249,-3000.0,0.00018904,7]
[407872010,1772862632264,-693.3919763,0.00018999,2]
[407872011,1772862632277,-166.66,0.00019051,2]
[407872012,1772862632290,-719.04747942,0.00019054,2]
[407872013,1772862632304,-745.65223616,0.00019109,2]
[407872014,1772862632317,-773.2413689,0.00019164,2]
[407872015,1772862632330,-158.0,0.00019219,3]
[407872016,1772862632344,-801.85129955,0.00019219,2]
[407872017,1772862632357,-535.0,0.00019221,2]
[407872018,1772862632370,-168.0,0.00019221,2]
[407872019,1772862632385,-172.78723296,0.00019225,2]
[407872020,1772862632398,-168.0,0.00019232,2]
[407872021,1772862632414,-831.51979763,0.00019274,2]
[407872022,1772862632426,-151.0,0.00019304,2]
[407872023,1772862632439,-151.0,0.00019304,2]
[407872024,1772862632452,-500.0,0.00019304,2]
[407872025,1772862632465,-151.0,0.00019304,2]
[407872026,1772862632480,-151.0,0.00019304,2]
[407872027,1772862632493,-151.0,0.00019304,2]
[407872028,1772862632507,-151.0,0.00019304,2]
[407872029,1772862632519,-151.0,0.00019304,2]
[407872030,1772862632532,-151.0,0.00019304,2]
[407872031,1772862632545,-151.0,0.00019304,2]
[407872032,1772862632557,-151.0,0.00019304,2]
[407872033,1772862632570,-169.27143825,0.00019304,2]
[407872034,1772862632582,-500.0,0.00019304,2]
[407872035,1772862632595,-500.0,0.00019304,2]
[407872036,1772862632609,-500.0,0.00019304,2]
[407872037,1772862632621,-500.0,0.00019304,2]
[407872038,1772862632635,-500.0,0.00019304,2]
[407872039,1772862632649,-500.0,0.00019304,2]
[407872040,1772862632660,-500.0,0.00019304,2]
[407872041,1772862632674,-500.0,0.00019304,2]
[407872042,1772862632688,-500.0,0.00019304,2]
[407872043,1772862632702,-500.0,0.00019304,2]
[407872044,1772862632716,-500.0,0.00019304,2]
[407872045,1772862632731,-862.28603014,0.00019329,2]
[407872046,1772862632743,-648.0,0.00019371,2]
[407872047,1772862632756,-894.19061326,0.00019384,2]
[407872048,1772862632769,-200.0,0.000194,7]
[407872049,1772862632781,-927.27566595,0.00019439,2]
[407872050,1772862632793,-961.58486559,0.00019494,2]
[407872051,1772862632808,-400.0,0.000195,7]
[407872052,1772862632821,-5719.5376,0.0001951,2]
[407872053,1772862632833,-168.0,0.00019513,2]
[407872054,1772862632846,-997.16350561,0.00019549,2]
[407872055,1772862632858,-500.0,0.00019578,2]
[407872056,1772862632871,-503.7310091,0.00019578,2]
[407872057,1772862632884,-168.0,0.00019591,2]
[407872058,1772862632896,-1661.0168505,0.000196,2]
[407872059,1772862632910,-700.0,0.000196,7]
[407872060,1772862632922,-500.0,0.00019602,2]
[407872061,1772862632935,-821.0,0.00019602,2]
[407872062,1772862632947,-740.0,0.00019602,2]
[407872063,1772862632960,-500.0,0.00019602,2]
[407872064,1772862632973,-500.0,0.00019602,2]
[407872065,1772862632987,-150.0,0.00019602,2]
[407872066,1772862633000,-866.0,0.00019602,2]
[407872067,1772862633015,-151.12456673,0.00019602,2]
[407872068,1772862633028,-500.0,0.00019602,2]
[407872069,1772862633043,-150.0,0.00019602,2]
[407872070,1772862633057,-500.0,0.00019602,2]
[407872071,1772862633072,-500.0,0.00019602,2]
[407872072,1772862633085,-500.0,0.00019602,2]
[407872073,1772862633100,-150.0,0.00019602,2]
[407872074,1772862633112,-490.0,0.00019602,2]
[407872075,1772862633125,-500.0,0.00019602,2]
[407872076,1772862633137,-3503.0,0.00019634,2]
[407872077,1772862633150,-1042.0,0.00019634,2]
[407872078,1772862633162,-1341.0,0.00019634,2]
[407872079,1772862633175,-619.0,0.00019634,2]
[407872080,1772862633188,-1279.0,0.00019634,2]
[407872081,1772862633199,-922.0,0.00019634,2]
[407872082,1772862633212,-414.0,0.00019634,2]
[407872083,1772862633225,-2457.0,0.00019634,2]
[407872084,1772862633239,-4136.9726,0.00019635,2]
[407872085,1772862633252,-500.0,0.00019657,2]
[407872086,1772862633265,-821.0,0.00019657,2]
[407872087,1772862633277,-740.0,0.00019657,2]
[407872088,1772862633290,-500.0,0.00019657,2]
[407872089,1772862633303,-500.0,0.00019657,2]
[407872090,1772862633318,-150.0,0.00019657,2]
[407872091,1772862633331,-866.0,0.00019657,2]
[407872092,1772862633343,-500.0,0.00019657,2]
[407872093,1772862633355,-150.0,0.00019657,2]
[407872094,1772862633367,-500.0,0.00019657,2]
[407872095,1772862633380,-500.0,0.00019657,2]
[407872096,1772862633394,-500.0,0.00019657,2]
[407872097,1772862633408,-490.0,0.00019657,2]
[407872098,1772862633422,-168.0,0.0001967,2]
[407872099,1772862633434,-168.0,0.00019693,2]
[407872100,1772862633448,-2000.0,0.000197,2]
[407872101,1772862633461,-900.0,0.000197,7]
[407872102,1772862633473,-500.0,0.00019712,2]
[407872103,1772862633489,-821.0,0.00019712,2]
[407872104,1772862633501,-740.0,0.00019712,2]
[407872105,1772862633512,-500.0,0.00019712,2]
[407872106,1772862633524,-500.0,0.00019712,2]
[407872107,1772862633538,-200.0,0.00019712,2]
[407872108,1772862633551,-866.0,0.00019712,2]
[407872109,1772862633563,-500.0,0.00019712,2]
[407872110,1772862633575,-150.0,0.00019712,2]
[407872111,1772862633589,-500.0,0.00019712,2]
[407872112,1772862633601,-500.0,0.00019712,2]
[407872113,1772862633614,-200.0,0.00019712,2]
[407872114,1772862633626,-490.0,0.00019712,2]
[407872115,1772862633638,-150.0,0.00019712,2]
[407872116,1772862633651,-150.0,0.00019712,2]
[407872117,1772862633663,-500.0,0.00019712,2]
[407872118,1772862633677,-164.64776858,0.00019712,2]
[407872119,1772862633690,-465.0,0.00019712,2]
[407872120,1772862633703,-500.0,0.00019712,2]
[407872121,1772862633715,-500.0,0.00019712,2]
[407872122,1772862633728,-150.0,0.00019712,2]
[407872123,1772862633743,-500.0,0.00019712,2]
[407872124,1772862633756,-500.0,0.00019726,2]
[407872125,1772862633768,-500.0,0.00019766,2]
[407872126,1772862633781,-821.0,0.00019766,2]
[407872127,1772862633792,-740.0,0.00019766,2]
[407872128,1772862633805,-637.55896333,0.00019766,2]
[407872129,1772862633816,-500.0,0.00019766,2]
[407872130,1772862633828,-866.0,0.00019766,2]
[407872131,1772862633839,-500.0,0.00019766,2]
[407872132,1772862633853,-150.0,0.00019766,2]
[407872133,1772862633875,-500.0,0.00019766,2]
[407872134,1772862633888,-500.0,0.00019766,2]
[407872135,1772862633903,-150.0,0.00019767,2]
[407872136,1772862633915,-150.0,0.00019767,2]
[407872137,1772862633928,-500.0,0.00019767,2]
[407872138,1772862633940,-465.0,0.00019767,2]
[407872139,1772862633953,-500.0,0.00019767,2]
[407872140,1772862633965,-500.0,0.00019767,2]
[407872141,1772862633981,-150.0,0.00019767,2]
[407872142,1772862634005,-500.0,0.00019767,2]
[407872143,1772862634029,-2417.557,0.00019771,2]
[407872144,1772862634041,-185.0082646,0.00019771,2]
[407872145,1772862634052,-1000.0,0.00019776,2]
[407872146,1772862634067,-859.93789384,0.00019776,2]
[407872147,1772862634079,-500.0,0.00019781,2]
[407872148,1772862634092,-346.51980767,0.00019781,2]
[407872149,1772862634105,-859.93789379,0.0001979,2]
[407872150,1772862634118,-1000.0,0.00019794,2]
[407872151,1772862634131,-2945.56917168,0.000198,7]
[407872152,1772862634143,-896.6401003,0.000198,2]
[407872153,1772862634161,-1103.3598997,0.000198,2]
[407872154,1772862634173,-2000.0,0.000198,2]
[407872155,1772862634184,-2000.0,0.000198,2]
[407872156,1772862634195,-2000.0,0.000198,2]
[407872157,1772862634206,-1100.0,0.000198,7]
[407872158,1772862634217,-2500.0,0.000198,2]
[407872159,1772862634229,-859.93789379,0.00019804,2]
[407872160,1772862634240,-166.66,0.00019806,2]
[407872161,1772862634250,-859.93789379,0.00019817,2]
[407872162,1772862634261,-500.0,0.00019821,2]
[407872163,1772862634272,-821.0,0.00019821,2]
[407872164,1772862634283,-740.0,0.00019821,2]
[407872165,1772862634294,-500.0,0.00019821,2]
[407872166,1772862634304,-866.0,0.00019821,2]
[407872167,1772862634315,-500.0,0.00019821,2]
[407872168,1772862634326,-150.0,0.00019821,2]
[407872169,1772862634337,-500.0,0.00019821,2]
[407872170,1772862634348,-500.0,0.00019821,2]
[407872171,1772862634359,-150.0,0.00019822,2]
[407872172,1772862634371,-200.0,0.00019822,2]
[407872173,1772862634382,-500.0,0.00019822,2]
[407872174,1772862634394,-465.0,0.00019822,2]
[407872175,1772862634408,-500.0,0.00019822,2]
[407872176,1772862634420,-500.0,0.00019822,2]
[407872177,1772862634432,-200.0,0.00019822,2]
[407872178,1772862634443,-404.08426516,0.00019822,2]
[407872179,1772862634455,-859.93789379,0.00019831,2]
[407872180,1772862634467,-500.0,0.00019836,2]
[407872181,1772862634478,-859.93789379,0.00019845,2]
[407872182,1772862634490,-168.0,0.00019852,2]
[407872183,1772862634502,-859.93789379,0.00019859,2]
[407872184,1772862634513,-859.93789379,0.00019872,2]
[407872185,1772862634525,-500.0,0.00019876,2]
[407872186,1772862634537,-821.0,0.00019876,2]
[407872187,1772862634549,-740.0,0.00019876,2]
[407872188,1772862634560,-500.0,0.00019876,2]
[407872189,1772862634572,-866.0,0.00019876,2]
[407872190,1772862634594,-500.0,0.00019876,2]
[407872191,1772862634617,-250.0,0.00019876,2]
[407872192,1772862634631,-500.0,0.00019876,2]
[407872193,1772862634643,-500.0,0.00019876,2]
[407872194,1772862634657,-244.737577,0.00019876,2]
[407872195,1772862634669,-500.0,0.00019876,2]
[407872196,1772862634682,-465.0,0.00019876,2]
[407872197,1772862634695,-500.0,0.00019876,2]
[407872198,1772862634709,-500.0,0.00019876,2]
[407872199,1772862634722,-500.0,0.0001989,2]
[407872200,1772862634734,-25000.0,0.00019891,3]
[407872201,1772862634746,-3525.93937346,0.00019897,2]
[407872202,1772862634759,-3525.93937339,0.00019897,2]
[407872203,1772862634773,-3525.93937339,0.00019898,2]
[407872204,1772862634787,-3525.93937339,0.00019898,2]
[407872205,1772862634798,-3525.93937339,0.00019898,2]
[407872206,1772862634811,-3525.93937339,0.00019899,2]
[407872207,1772862634824,-156.99274016,0.00019899,2]
[407872208,1772862635424,-500.0,0.00019899,2]
[407872209,1772862635435,-3525.93937339,0.00019899,2]
[407872210,1772862635445,-500.0,0.00019899,2]
[407872211,1772862635455,-500.0,0.00019899,2]
[407872212,1772862635465,-500.0,0.00019899,2]
[407872213,1772862635474,-500.0,0.00019899,2]
[407872214,1772862635485,-3525.93937339,0.00019899,2]
[407872215,1772862635495,-3525.93937339,0.000199,2]
[407872216,1772862635504,-25000.0,0.000199,3]
[407872217,1772862635513,-1000.0,0.000199,2]
[407872218,1772862635523,-19321.4759,0.000199,2]
[407872219,1772862635532,-160.89855356,0.000199,2]
[407872220,1772862635541,-2163.6249,0.000199,2]
[407872221,1772862635551,-5000.0,0.000199,2]
[407872222,1772862635560,-3525.93937339,0.000199,2]
[407872223,1772862635570,-200.0,0.000199,7]
[407872224,1772862635579,-662.00214262,0.000199,2]
[407872225,1772862635588,-184.82463119,0.000199,3]
[407872226,1772862635598,-1155.22856455,0.000199,2]
[407872227,1772862635607,-619.3023033,0.000199,2]
[407872228,1772862635616,-1000.0,0.00019902,2]
[407872229,1772862635626,-1000.0,0.00019912,2]
[407872230,1772862635636,-1000.0,0.00019912,2]
[407872231,1772862635645,-707.54456336,0.00019928,2]
[407872232,1772862635654,-500.0,0.00019931,2]
[407872233,1772862635664,-821.0,0.00019931,2]
[407872234,1772862635674,-740.0,0.00019931,2]
[407872235,1772862635683,-500.0,0.00019931,2]
[407872236,1772862635692,-866.0,0.00019931,2]
[407872237,1772862635702,-500.0,0.00019931,2]
[407872238,1772862635711,-500.0,0.00019931,2]
[407872239,1772862635721,-500.0,0.00019931,2]
[407872240,1772862635730,-500.0,0.00019931,2]
[407872241,1772862635739,-465.0,0.00019931,2]
[407872242,1772862635748,-500.0,0.00019931,2]
[407872243,1772862635757,-500.0,0.00019931,2]
[407872244,1772862635766,-500.0,0.00019945,2]
[407872245,1772862635775,-1000.0,0.00019948,2]
[407872246,1772862635785,-500.0,0.00019949,2]
[407872247,1772862635795,-500.0,0.00019949,2]
[407872248,1772862635804,-500.0,0.00019949,2]
[407872249,1772862635813,-500.0,0.00019949,2]
[407872250,1772862635823,-1000.0,0.0001995,2]
[407872251,1772862635832,-225.65,0.00019955,2]
[407872252,1772862635841,-406.60147012,0.00019971,2]
[407872253,1772862635850,-19183.0,0.00019973,2]
[407872254,1772862635859,-16794.73038118,0.00019973,2]
[407872255,1772862635871,-1234.26961882,0.00019973,2]
[407872256,1772862635881,-500.0,0.00019973,2]
[407872257,1772862635891,-150.0,0.00019973,2]
[407872258,1772862635900,-500.0,0.00019986,2]
[407872259,1772862635909,-821.0,0.00019986,2]
[407872260,1772862635918,-740.0,0.00019986,2]
[407872261,1772862635927,-500.0,0.00019986,2]
[407872262,1772862635937,-866.0,0.00019986,2]
[407872263,1772862635946,-400.0,0.00019986,2]
[407872264,1772862635955,-500.0,0.00019986,2]
[407872265,1772862635964,-500.0,0.00019986,2]
[407872266,1772862635973,-196.13672212,0.00019986,2]
[407872267,1772862635982,-465.0,0.00019986,2]
[407872268,1772862635992,-497.7811488,0.00019986,2]
[407872269,1772862636086,-0.49974579,0.00019986,2]
[407872270,1772862636100,-250.0,0.00019657,2]
[407872274,1772862638210,-150.0,0.00019602,2]
[407872275,1772862638220,-236.22884881,0.00019602,2]
[407872276,1772862638230,-500.0,0.00019602,2]
[407872277,1772862638241,-250.0,0.00019657,2]
[407872278,1772862638252,-572.19676855,0.00019657,2]
[407872279,1772862638263,-500.0,0.00019712,2]
[407872280,1772862638274,-490.0,0.00019766,2]
[407872281,1772862638286,-500.0,0.00019766,2]
[407872282,1772862638295,-490.0,0.00019821,2]
[407872283,1772862638304,-500.0,0.00019821,2]
[407872285,1772862638314,-500.0,0.00019876,2]
[407872286,1772862638323,-490.0,0.00019876,2]
[407872287,1772862638332,-859.93789379,0.00019886,2]
[407872288,1772862638341,-859.93789379,0.000199,2]
[407872289,1772862638350,-500.0,0.00019931,2]
[407872290,1772862638360,-490.0,0.00019931,2]
[407872291,1772862638370,-500.0,0.00019986,2]
[407872292,1772862638379,-490.0,0.00019986,2]
[407872293,1772862638389,-500.0,0.00019986,2]
[407872294,1772862638398,-200.0,0.00019989,2]
[407872296,1772862638411,-220.36614209,0.0001999,2]
[407872298,1772862638421,-220.36614209,0.0001999,2]
[407872299,1772862638430,-220.36614209,0.0001999,2]
[407872300,1772862638439,-270267.1238988,0.00019997,2]
[407872301,1772862638450,-17138.3283188,0.00019997,2]
[407872302,1772862638459,-50194.444023,0.00019997,2]
[407872303,1772862638468,-151.0,0.00019997,2]
[407872304,1772862638477,-309.98346331,0.00019999,2]
[407872305,1772862638488,-500.0,0.00019999,2]
[407872306,1772862638498,-500.0,0.00019999,2]
[407872307,1772862638507,-500.0,0.00019999,2]
[407872308,1772862638517,-500.0,0.00019999,2]
[407872309,1772862638527,-500.0,0.00019999,2]
[407872310,1772862638536,-500.0,0.00019999,2]
[407872311,1772862638546,-500.0,0.00019999,2]
[407872312,1772862638555,-397.97236465,0.00019999,2]
[407872313,1772862638564,-500.0,0.00019999,2]
[407872314,1772862638574,-500.0,0.00019999,2]
[407872315,1772862638858,-500.0,0.00019999,2]
[407872316,1772862638872,-500.0,0.00019999,2]
[407872317,1772862638882,-500.0,0.00019999,2]
[407872318,1772862638891,-500.0,0.00019999,2]
[407872319,1772862638900,-500.0,0.00019999,2]
[407872320,1772862638910,-422.5802129,0.00019999,2]
[407872321,1772862638919,-500.0,0.00019999,2]
[407872322,1772862638928,-485.29077404,0.00019999,2]
[407872323,1772862638937,-500.0,0.00019999,2]
[407872324,1772862638946,-500.0,0.00019999,2]
[407872325,1772862638955,-500.0,0.00019999,2]
[407872326,1772862638964,-500.0,0.00019999,2]
[407872327,1772862638973,-500.0,0.00019999,2]
[407872328,1772862638982,-500.0,0.00019999,2]
[407872329,1772862638991,-500.0,0.00019999,2]
[407872330,1772862639002,-513.528378,0.00019999,2]
[407872331,1772862639013,-500.0,0.00019999,2]
[407872332,1772862639023,-605.86247978,0.00019999,2]
[407872333,1772862639034,-3000.0,0.00019999,2]
[407872334,1772862639044,-3000.0,0.00019999,7]
[407872335,1772862639055,-515.26950222,0.00019999,2]
[407872336,1772862639066,-509.24586147,0.00019999,2]
[407872337,1772862639078,-157.04969745,0.00019999,2]
[407872338,1772862639089,-256.75572098,0.00019999,2]
[407872339,1772862639100,-1335.0,0.00019999,2]
[407872340,1772862639111,-1546.0,0.0002,2]
[407872341,1772862639122,-3000.0,0.0002,7]
[407872342,1772862639131,-2276570.15653887,0.0002,2]
[407872343,1772862639141,-10000.0,0.0002,30]
[407872344,1772862639150,-1792.02437307,0.0002,120]
[407872345,1772862639159,-151.0,0.0002,2]
[407872346,1772862639167,-1709.74067993,0.0002,120]
[407872347,1772862639175,-1544508.58520081,0.0002,2]
[407872349,1772862640172,-945.28458521,0.0002,2]
[407872350,1772862640554,-5991.0,0.00019634,2]
[407872351,1772862640564,-2052447.07300742,0.0002,2]
[407872352,1772862640574,-1951.9750673,0.0002,120]
[407872353,1772862640584,-1656.19,0.0002,30]